bitfinex-derivatives/quotes_ETHF0:USTF0_20241024
["timestamp","ask_amount","ask_price","bid_price","bid_amount"]
[1729767033322,0.39611,2526.9,2526.8,1.14083694]
[1729767034424,0.39611,2526.9,2526.7,3.2078]
[1729767034425,3.9576,2526.9,2526.7,3.2078]
[1729767034620,0.39613,2526.8,2526.7,3.2078]
[1729767034933,0.80113,2526.8,2526.7,3.2078]
[1729767035625,0.80113,2526.8,2526.7,3.60394]
[1729767036021,0.80113,2526.8,2526.7,4.34863694]
[1729767037628,0.80113,2526.8,2526.7,4.74477694]
[1729767037826,0.39613,2526.8,2526.7,4.74477694]
[1729767038132,0.39613,2526.8,2526.7,4.34863694]
[1729767038429,0.39613,2526.8,2526.7,4.74477694]
[1729767038733,0.39613,2526.8,2526.7,4.34863694]
[1729767040030,0.39613,2526.8,2526.7,1.14083694]
[1729767043436,0.39613,2526.8,2526.7,1.53697694]
[1729767043930,0.39613,2526.8,2526.7,1.14083694]
[1729767044435,0.39613,2526.8,2526.7,1.53697694]
[1729767046631,3.6054,2527.2,2526.7,5.09843694]
[1729767046838,4.00147,2527.2,2527.1,1.14083694]
[1729767047227,0.39608,2527.1,2527.0,1.14083694]
[1729767047729,4.35288,2527.1,2527.0,1.14083694]
[1729767048127,0.39608,2527.1,2527.0,1.14083694]
[1729767051031,0.39608,2527.1,2527.0,2.40513694]
[1729767051939,5.33873694,2527.4,2527.0,2.00903694]
[1729767051940,4.1979,2527.4,2527.0,2.00903694]
[1729767052131,0.39608,2527.2,2527.1,0.39606]
[1729767052334,0.39608,2527.1,2527.0,1.26429]
[1729767052640,0.39608,2527.1,2527.0,0.8682]
[1729767053532,0.39608,2527.1,2527.0,2.40513694]
[1729767054232,0.39608,2527.1,2527.0,2.00903694]
[1729767054734,0.39608,2527.1,2527.0,2.40513694]
[1729767055234,0.39608,2527.1,2527.0,2.00903694]
[1729767055840,0.39608,2527.1,2527.0,2.40513694]
[1729767056233,0.39608,2527.1,2527.0,2.00903694]
[1729767056832,0.39608,2527.1,2527.0,2.40513694]
[1729767057239,0.39608,2527.1,2527.0,2.00903694]
[1729767057537,1.53691694,2527.1,2527.0,0.8682]
[1729767057738,1.53691694,2527.1,2526.9,0.4209]
[1729767057739,0.3961,2527.0,2526.9,1.56173694]
[1729767061529,0.8359,2527.0,2526.9,1.56173694]
[1729767066343,0.3961,2527.0,2526.9,1.95784694]
[1729767066739,1.42003,2527.3,2526.9,5.51933694]
[1729767067039,0.39605,2527.3,2527.2,1.14083694]
[1729767067244,0.39605,2527.3,2527.2,1.53690694]
[1729767067447,0.39605,2527.3,2527.2,1.14083694]
[1729767067642,0.39605,2527.3,2527.2,1.53690694]
[1729767068752,3.2078,2528.3,2527.2,17.14556784]
[1729767068961,3.2078,2528.3,2528.2,1.14083694]
[1729767068962,4.03109,2528.3,2528.2,1.14083694]
[1729767069151,3.60369,2528.3,2528.2,1.14083694]
[1729767069456,0.4064,2528.6,2528.2,1.14083694]
[1729767069457,3.2078,2528.6,2528.2,1.14083694]
[1729767069668,3.2078,2528.6,2528.5,1.14083694]
[1729767069852,3.60365,2528.6,2528.5,1.14083694]
[1729767070064,3.60365,2528.6,2528.2,1.14083694]
[1729767070065,3.2078,2528.6,2528.2,1.03752164]
[1729767070356,0.39588,2528.4,2528.3,0.997]
[1729767070540,3.2078,2528.6,2528.0,5.51062164]
[1729767070847,3.2078,2528.6,2528.5,1.14083694]
[1729767071045,3.60365,2528.6,2528.5,1.14083694]
[1729767073250,0.39592,2528.1,2528.0,5.0519]
[1729767073450,0.39592,2528.1,2528.0,5.19573694]
[1729767073752,3.60365,2528.6,2528.5,0.39586]
[1729767073946,3.2078,2528.6,2528.5,0.39586]
[1729767074352,3.2078,2528.6,2528.5,1.53669694]
[1729767074562,3.2078,2528.6,2528.5,1.93889694]
[1729767075255,3.2078,2528.6,2528.5,2.93589694]
[1729767076257,3.2078,2528.6,2528.5,4.2665443]
[1729767077957,0.39581,2528.9,2528.7,0.39582]
[1729767078156,0.39581,2528.9,2528.8,2.4714843]
[1729767081048,0.81331,2528.9,2528.8,2.4714843]
[1729767081248,1.25251,2528.9,2528.8,2.4714843]
[1729767081459,1.25251,2528.9,2528.6,1.3921]
[1729767081460,0.39583,2528.7,2528.6,2.8875843]
[1729767081857,3.2078,2529.3,2528.6,6.8419843]
[1729767082063,3.60354,2529.3,2529.2,2.4714843]
[1729767082252,8.01872031,2529.3,2529.2,2.4714843]
[1729767083557,3.60354,2529.3,2529.2,2.4714843]
[1729767084060,3.60354,2529.3,2529.2,2.8672343]
[1729767084264,3.2078,2529.3,2529.2,2.8672343]
[1729767084964,41.2175,2529.5,2529.2,2.4714843]
[1729767085260,0.39572,2529.5,2529.4,2.8671943]
[1729767085658,0.39572,2529.5,2529.4,2.8672043]
[1729767085859,0.39572,2529.5,2529.4,3.3025043]
[1729767087660,0.39572,2529.5,2529.4,2.9067843]
[1729767094467,1.38997,2529.8,2529.4,2.9067843]
[1729767094968,0.39572,2529.5,2529.4,2.9067843]
[1729767095765,0.39572,2529.5,2529.2,2.4714843]
[1729767096070,0.4067,2529.4,2529.1,0.80596]
[1729767096275,0.39575,2529.2,2529.1,0.4102]
[1729767096665,0.4069,2529.3,2529.0,3.6382]
[1729767096867,0.39577,2529.1,2529.0,0.4304]
[1729767097360,0.39577,2529.1,2529.0,2.4714843]
[1729767098359,8.76619024,2529.1,2529.0,2.4714843]
[1729767098565,9.17329024,2529.1,2529.0,2.4714843]
[1729767098759,9.17329024,2529.1,2528.7,3.2078]
[1729767098760,0.39582,2528.8,2528.7,5.6792843]
[1729767098967,7.5694,2529.0,2528.5,2.4714843]
[1729767099173,0.39585,2528.6,2528.5,2.4714843]
[1729767101267,0.39584,2528.7,2528.5,2.4714843]
[1729767101480,0.39585,2528.6,2528.5,3.3046443]
[1729767102074,0.39584,2528.7,2528.6,0.39584]
[1729767102376,0.39584,2528.7,2528.6,0.4074]
[1729767102377,0.39583,2528.7,2528.6,0.4074]
[1729767102670,0.39586,2528.5,2528.4,5.6792843]
[1729767106972,0.39586,2528.5,2528.4,3.2078]
[1729767110366,0.39586,2528.5,2528.4,4.34861514]
[1729767112369,0.39586,2528.5,2528.4,1.14081514]
[1729767113676,0.39588,2528.4,2528.3,0.4074]
[1729767114570,0.39588,2528.4,2528.3,1.54821514]
[1729767120493,0.39589,2528.3,2528.2,0.4379]
[1729767120681,0.39589,2528.3,2528.2,1.57871514]
[1729767120979,0.39589,2528.3,2528.2,2.00851514]
[1729767121185,0.39596,2527.9,2527.8,0.36846575]
[1729767121384,0.98982,2528.1,2527.7,3.2078]
[1729767121385,4.19762,2528.1,2527.7,3.2078]
[1729767121575,0.39597,2527.8,2527.7,3.2078]
[1729767121888,0.39597,2527.8,2527.7,3.59153836]
[1729767122973,0.39597,2527.8,2527.7,5.1283435]
[1729767123186,0.39597,2527.9,2527.8,0.39597]
[1729767123383,0.39596,2527.9,2527.8,2.28163028]
[1729767123695,0.39596,2527.9,2527.8,6.23763028]
[1729767124079,0.39596,2527.9,2527.8,6.63360028]
[1729767124278,0.39596,2527.9,2527.8,6.82415001]
[1729767124679,0.39595,2528.0,2527.9,0.39595]
[1729767124874,0.39595,2528.0,2527.9,2.86813001]
[1729767125079,0.39595,2528.0,2527.9,6.42818001]
[1729767125279,0.39595,2528.0,2527.9,2.86814001]
[1729767125480,0.39595,2528.0,2527.9,6.42818001]
[1729767125682,0.39595,2528.0,2527.9,2.47218001]
[1729767126286,0.39595,2528.0,2527.9,2.86814001]
[1729767126687,0.39595,2528.0,2527.9,2.47218001]
[1729767128489,0.39595,2528.0,2527.9,2.86814001]
[1729767129189,0.39595,2528.0,2527.9,2.47218001]
[1729767130995,0.39595,2528.0,2527.9,2.87658001]
[1729767135402,4.19746,2528.5,2528.0,3.956]
[1729767135596,3.60366,2528.5,2528.4,2.47218001]
[1729767135997,4.01286,2528.5,2528.4,2.47218001]
[1729767141403,4.01286,2528.5,2528.4,2.87218001]
[1729767141810,4.01286,2528.5,2528.4,2.47218001]
[1729767142009,0.98971,2528.4,2528.0,2.47218001]
[1729767142310,0.39592,2528.1,2528.0,2.47218001]
[1729767142805,4.75452,2528.1,2528.0,2.47218001]
[1729767143197,0.39592,2528.1,2528.0,2.47218001]
[1729767144405,1.39234,2528.3,2528.0,1.14100458]
[1729767144608,0.79849,2528.3,2528.2,1.14100458]
[1729767145000,4.75369,2528.3,2528.2,1.14100458]
[1729767145803,5.49880458,2528.3,2527.7,1.43258546]
[1729767145998,5.49880458,2528.3,2527.7,0.4]
[1729767145999,0.39597,2527.8,2527.7,0.4]
[1729767146208,0.39597,2527.8,2527.7,1.54100458]
[1729767146402,0.39597,2527.8,2527.7,0.4]
[1729767148807,0.98998,2527.7,2527.4,3.50527966]
[1729767149011,0.39602,2527.5,2527.4,2.4726942]
[1729767149201,0.39603,2527.4,2527.3,0.4]
[1729767149404,0.80423,2527.4,2527.3,0.4]
[1729767152905,0.39607,2527.2,2527.1,3.2078]
[1729767153802,0.39607,2527.2,2527.1,3.60388]
[1729767154009,0.39607,2527.2,2527.1,3.2078]
[1729767156512,0.39608,2527.1,2527.0,5.6804942]
[1729767157109,0.39608,2527.1,2527.0,6.0765942]
[1729767158619,0.4111,2527.5,2527.0,9.6372942]
[1729767158821,0.39608,2527.2,2527.1,0.39608]
[1729767159014,0.39608,2527.2,2527.1,2.8687742]
[1729767161320,0.39608,2527.2,2527.1,2.4726942]
[1729767161921,0.39608,2527.2,2527.1,2.8687742]
[1729767164318,4.61392,2527.6,2527.1,2.4726942]
[1729767164627,4.36082222,2527.5,2527.4,2.4726942]
[1729767164819,4.75684222,2527.5,2527.4,2.4726942]
[1729767165619,0.39602,2527.5,2527.4,2.4726942]
[1729767166720,0.39602,2527.6,2527.5,0.39601]
[1729767166924,0.39602,2527.5,2527.4,2.8687142]
[1729767167423,0.39602,2527.6,2527.5,0.39601]
[1729767167626,0.39602,2527.6,2527.5,2.8687042]
[1729767168326,0.39602,2527.6,2527.5,1.53722278]
[1729767168924,0.39602,2527.6,2527.5,1.14121278]
[1729767170622,0.39602,2527.6,2527.5,1.53723278]
[1729767171829,0.39598,2527.8,2527.7,0.39598]
[1729767172028,0.39596,2527.9,2527.8,0.39596]
[1729767172233,0.39596,2527.9,2527.8,1.53717278]
[1729767173032,0.39596,2527.9,2527.8,1.14121278]
[1729767173233,0.39596,2527.9,2527.8,1.53718278]
[1729767173434,0.39596,2527.9,2527.8,2.67839556]
[1729767173735,0.39596,2527.9,2527.8,4.74498278]
[1729767173944,0.39595,2528.0,2527.9,0.39594]
[1729767174231,0.39594,2528.0,2527.9,1.53716278]
[1729767174631,0.39594,2528.0,2527.9,1.14121278]
[1729767174935,0.39594,2528.0,2527.9,1.53717278]
[1729767175132,0.39594,2528.0,2527.9,2.67838556]
[1729767177036,0.39593,2528.1,2528.0,0.39594]
[1729767177235,0.39593,2528.1,2528.0,2.79705278]
[1729767179640,0.39593,2528.1,2528.0,2.40111278]
[1729767181241,0.39593,2528.1,2528.0,2.79705278]
[1729767184141,0.39593,2528.1,2528.0,1.2599]
[1729767184340,0.39593,2528.1,2528.0,0.3976]
[1729767184540,0.39593,2528.1,2528.0,1.53881278]
[1729767187245,0.39593,2528.1,2528.0,1.14121278]
[1729767196264,0.4243,2528.4,2528.0,1.14121278]
[1729767196449,0.39588,2528.4,2528.3,1.14121278]
[1729767197046,0.39588,2528.4,2528.3,1.99091278]
[1729767197653,0.39588,2528.4,2528.3,2.38680278]
[1729767199661,0.39588,2528.4,2528.3,1.99091278]
[1729767201266,0.39588,2528.4,2528.3,2.38680278]
[1729767205270,0.39588,2528.4,2528.3,1.99091278]
[1729767205469,0.39588,2528.4,2528.3,2.38680278]
[1729767207169,0.39588,2528.4,2528.3,2.76024776]
[1729767209182,0.39588,2528.4,2528.1,0.4349]
[1729767209183,0.39591,2528.2,2528.1,0.4349]
[1729767209370,0.39591,2528.2,2528.1,1.57611278]
[1729767209876,0.39591,2528.2,2528.1,1.97203278]
[1729767210566,0.39591,2528.2,2528.1,1.57611278]
[1729767212467,0.39591,2528.2,2528.1,1.97203278]
[1729767212666,0.39591,2528.2,2528.1,1.57611278]
[1729767212867,0.39591,2528.2,2528.1,1.97203278]
[1729767216567,0.39591,2528.2,2528.1,3.00621808]
[1729767217779,0.39591,2528.2,2528.1,4.55529879]
[1729767217975,0.39591,2528.3,2528.2,0.39591]
[1729767218171,0.39591,2528.3,2528.2,1.53712278]
[1729767218481,0.39591,2528.3,2528.2,2.57130808]
[1729767219780,0.39591,2528.3,2528.2,1.53712278]
[1729767220572,0.39589,2528.4,2528.3,0.39589]
[1729767220774,0.39589,2528.4,2528.3,2.40770278]
[1729767221378,0.4056,2528.7,2528.3,2.01181278]
[1729767221578,0.80143,2528.7,2528.6,1.14121278]
[1729767221884,0.39583,2528.7,2528.6,1.53706278]
[1729767222077,0.39583,2528.7,2528.6,1.14121278]
[1729767222973,0.39583,2528.7,2528.6,2.28242556]
[1729767223182,0.39583,2528.7,2528.6,2.67827556]
[1729767223382,0.39583,2528.7,2528.6,1.53706278]
[1729767224683,0.39583,2528.7,2528.6,1.14121278]
[1729767225073,0.39583,2528.7,2528.6,1.53706278]
[1729767226477,0.39583,2528.7,2528.6,1.14121278]
[1729767226676,0.39583,2528.7,2528.6,2.55611812]
[1729767226983,0.39583,2528.7,2528.6,1.52193282]
[1729767227173,0.39583,2528.7,2528.6,1.14121278]
[1729767227375,1.19743,2528.7,2528.6,1.14121278]
[1729767235791,0.39586,2528.5,2528.4,0.4081]
[1729767236089,0.39586,2528.5,2528.4,1.54931278]
[1729767236893,0.39586,2528.5,2528.4,1.14121278]
[1729767238581,4.35106,2528.5,2528.4,1.14121278]
[1729767238783,0.39591,2528.2,2528.1,1.4468853]
[1729767238982,0.39591,2528.2,2528.1,1.14121278]
[1729767240592,0.421,2528.3,2528.0,0.8371]
[1729767240894,0.421,2528.3,2528.0,0.4032]
[1729767240895,0.39592,2528.1,2528.0,0.4032]
[1729767241784,0.39592,2528.1,2528.0,1.4373853]
[1729767242192,0.39592,2528.1,2528.0,1.54441278]
[1729767242485,0.39592,2528.1,2528.0,1.14121278]
[1729767242880,0.81722,2528.1,2528.0,1.14121278]
[1729767247495,0.81722,2528.1,2527.9,0.401]
[1729767247496,0.39594,2528.0,2527.9,0.401]
[1729767247694,0.39596,2527.9,2527.8,1.14121278]
[1729767247891,0.8209,2527.9,2527.6,3.6489]
[1729767248196,0.39599,2527.7,2527.6,3.6489]
[1729767249091,0.39599,2527.7,2527.6,4.79011278]
[1729767249885,4.35199,2527.7,2527.6,4.34901278]
[1729767250092,4.35199,2527.7,2527.6,3.2078]
[1729767250391,4.35199,2527.7,2527.6,4.34901278]
[1729767250794,5.49320278,2527.7,2527.6,4.34901278]
[1729767250993,8.30501278,2527.7,2527.2,4.6444853]
[1729767251199,0.39605,2527.3,2527.2,4.6444853]
[1729767251698,0.82535,2527.3,2527.2,4.6444853]
[1729767252292,0.82535,2527.3,2527.2,3.6103]
[1729767252495,0.82535,2527.3,2527.2,4.75151278]
[1729767253793,0.39607,2527.2,2527.1,1.0341853]
[1729767253991,5.89808278,2527.2,2527.1,1.0341853]
[1729767254186,9.25260457,2527.2,2527.1,2.17539808]
[1729767255490,9.99774735,2527.2,2526.8,1.14121278]
[1729767255691,0.39611,2526.9,2526.8,1.14121278]
[1729767256095,1.26891,2526.9,2526.8,1.14121278]
[1729767258101,0.83221,2526.9,2526.8,1.14121278]
[1729767258306,0.39614,2526.7,2526.6,0.8435]
[1729767258498,0.39614,2526.7,2526.6,1.98471278]
[1729767263900,0.39614,2526.7,2526.6,1.57871278]
[1729767264096,4.35374,2526.7,2526.6,1.57871278]
[1729767264904,9.45136932,2526.7,2526.4,0.4235]
[1729767265102,0.39619,2526.4,2526.3,0.8399]
[1729767265303,0.39619,2526.4,2526.3,1.98111278]
[1729767265505,0.81689,2526.4,2526.3,1.98111278]
[1729767265704,0.81689,2526.4,2526.3,1.54671278]
[1729767266113,1.56191278,2526.4,2526.2,1.55323742]
[1729767266315,0.39621,2526.3,2526.2,2.6944502]
[1729767268812,0.39621,2526.3,2526.2,1.14121278]
[1729767273504,4.76971278,2526.4,2526.1,0.8576]
[1729767273709,0.9906,2526.1,2525.2,0.39637]
[1729767273903,1.53751278,2525.7,2525.6,1.14121278]
[1729767274611,0.3963,2525.7,2525.6,1.14121278]
[1729767275817,1.53751278,2525.7,2525.6,1.14121278]
[1729767276017,1.53751278,2525.7,2525.1,0.37896105]
[1729767276018,0.39643,2524.9,2524.8,3.60423]
[1729767276317,0.39644,2524.8,2524.7,2.47524244]
[1729767276517,0.39644,2524.8,2524.7,2.87170244]
[1729767276708,0.39644,2524.8,2524.7,2.47524244]
[1729767277415,0.39644,2524.8,2524.7,0.8261]
[1729767278516,0.3964,2525.1,2524.7,3.69779244]
[1729767278709,3.2078,2525.2,2524.7,3.30134244]
[1729767278915,3.2078,2525.2,2524.8,3.60423]
[1729767278916,0.39642,2525.0,2524.8,3.60423]
[1729767279415,3.2078,2525.2,2524.8,3.60423]
[1729767279617,0.39643,2524.9,2524.8,3.60423]
[1729767279914,0.39643,2524.9,2524.8,3.60424]
[1729767280515,3.2078,2525.2,2524.8,3.2078]
[1729767280718,0.3964,2525.1,2524.9,0.39642]
[1729767281108,0.3964,2525.1,2525.0,0.4346]
[1729767282018,3.2078,2525.5,2525.0,4.3946]
[1729767282224,3.2078,2525.5,2525.2,2.47524244]
[1729767282414,0.39631,2525.7,2525.6,0.39632]
[1729767282720,0.39633,2525.6,2525.4,2.47524244]
[1729767283120,0.39631,2525.7,2525.6,0.39632]
[1729767283524,3.2078,2525.8,2525.6,0.39632]
[1729767283715,3.2078,2525.8,2525.4,2.47524244]
[1729767283916,0.39633,2525.6,2525.4,2.47524244]
[1729767284124,0.39633,2525.6,2525.5,0.39633]
[1729767284319,0.39631,2525.7,2525.6,0.39631]
[1729767284716,0.39629,2525.8,2525.5,0.39633]
[1729767284920,3.2078,2526.2,2525.7,3.2078]
[1729767285219,3.2078,2526.2,2525.8,0.4254]
[1729767285421,3.2078,2526.2,2525.8,0.82168]
[1729767285623,0.39627,2526.0,2525.9,0.4173]
[1729767286016,0.39627,2525.9,2525.8,0.4254]
[1729767293125,0.39632,2525.6,2525.5,0.39632]
[1729767293329,0.39632,2525.6,2525.5,1.26272]
[1729767293536,0.99067,2526.0,2525.5,1.26272]
[1729767293537,0.39631,2525.7,2525.6,0.39631]
[1729767293734,0.8453,2525.9,2525.5,0.8664]
[1729767293932,0.39632,2525.6,2525.5,1.26273]
[1729767295435,0.39632,2525.6,2525.5,0.8664]
[1729767295641,0.39632,2525.6,2525.5,1.26273]
[1729767296034,0.39632,2525.6,2525.5,2.79635558]
[1729767296236,3.9592,2525.6,2525.4,1.55323742]
[1729767296439,4.6087306,2525.6,2525.4,0.39635]
[1729767296642,0.39633,2525.5,2525.4,0.39635]
[1729767298238,0.3963,2525.7,2525.3,1.25225]
[1729767298434,0.39635,2525.5,2525.3,1.25225]
[1729767298636,0.39635,2525.4,2525.3,1.25225]
[1729767298837,0.39635,2525.5,2525.3,1.25225]
[1729767299037,46.0031406,2525.8,2525.3,1.25225]
[1729767299242,0.39635,2525.4,2525.3,1.25225]
[1729767299939,0.39635,2525.4,2525.3,0.8559]
[1729767300132,0.39635,2525.4,2525.3,4.46006]
[1729767300337,0.39635,2525.4,2525.3,4.0637]
[1729767300640,0.3964,2525.1,2525.0,2.92164742]
[1729767300834,0.3964,2525.1,2525.0,4.8886951]
[1729767301236,0.39639,2525.2,2525.1,0.39639]
[1729767301632,0.39637,2525.3,2525.2,0.39637]
[1729767302043,0.39637,2525.3,2525.2,1.26438]
[1729767302239,0.39637,2525.3,2525.2,0.868]
[1729767302641,1.39521,2525.6,2525.2,0.868]
[1729767302642,0.4044,2525.6,2525.2,0.868]
[1729767302839,0.39636,2525.4,2525.3,0.39636]
[1729767304249,0.39636,2525.4,2525.3,0.80946]
[1729767304445,0.39636,2525.4,2525.3,0.4131]
[1729767304844,0.39636,2525.4,2525.3,0.80946]
[1729767306742,0.39636,2525.4,2525.3,0.4131]
[1729767306938,0.39636,2525.4,2525.3,0.80946]
[1729767308245,0.39635,2525.4,2525.3,0.80946]
[1729767309444,0.4044,2525.6,2525.3,0.4131]
[1729767309646,0.39631,2525.7,2525.6,0.39631]
[1729767309844,0.99067,2526.0,2525.4,3.2078]
[1729767309845,1.39977,2526.0,2525.4,3.2078]
[1729767310040,0.39631,2525.7,2525.6,0.83372]
[1729767312052,0.39631,2525.7,2525.6,0.4374]
[1729767312244,0.39636,2525.3,2525.2,1.84]
[1729767312449,0.39636,2525.3,2525.2,2.2504]
[1729767312647,0.39636,2525.3,2525.2,2.64678]
[1729767312848,0.39636,2525.3,2525.2,2.2504]
[1729767313049,0.39636,2525.3,2525.2,0.4104]
[1729767313252,0.39641,2525.0,2524.9,0.8376]
[1729767313556,0.4269,2525.2,2524.9,0.8376]
[1729767313861,0.39639,2525.2,2525.1,0.39639]
[1729767314354,0.8151,2525.6,2525.2,0.39638]
[1729767314355,0.39638,2525.3,2525.2,0.39638]
[1729767314556,0.4335,2525.5,2525.1,0.4104]
[1729767315053,0.39638,2525.2,2525.1,0.80678]
[1729767315452,0.39638,2525.2,2525.1,0.4104]
[1729767321157,0.99089,2525.4,2524.9,1.23401]
[1729767321158,0.39641,2525.0,2524.9,1.23401]
[1729767321359,1.42435,2525.5,2524.9,1.2634]
[1729767321360,0.4335,2525.5,2524.9,1.2634]
[1729767321564,0.39641,2525.1,2525.0,0.39641]
[1729767322451,0.3981,2525.2,2524.9,1.2634]
[1729767322653,0.39637,2525.3,2525.2,0.39637]
[1729767322856,0.3981,2525.5,2525.0,2.47524244]
[1729767323054,0.39635,2525.4,2525.3,0.39635]
[1729767324857,0.39635,2525.4,2525.3,1.23895]
[1729767329162,0.4004,2525.6,2525.3,0.8426]
[1729767329458,0.39632,2525.6,2525.5,0.39632]
[1729767329659,0.4383,2525.8,2525.3,0.8426]
[1729767329859,0.39634,2525.5,2525.4,0.39634]
[1729767332162,0.39631,2525.7,2525.6,0.39631]
[1729767333864,0.39631,2525.7,2525.6,3.60411]
[1729767334782,0.39626,2526.0,2525.9,0.39626]
[1729767335066,0.39625,2526.1,2526.0,0.39625]
[1729767335375,40.8,2526.3,2525.9,3.2078]
[1729767335759,0.39621,2526.3,2526.2,0.39622]
[1729767336060,0.39621,2526.3,2525.9,5.68304244]
[1729767336061,0.39621,2526.3,2526.1,0.39622]
[1729767336468,0.39622,2526.2,2526.1,0.39622]
[1729767336764,0.39622,2526.2,2525.9,7.23627986]
[1729767336765,0.8437,2526.4,2525.9,7.23627986]
[1729767337065,0.8437,2526.4,2526.1,0.39624]
[1729767337868,0.8437,2526.4,2526.1,0.39623]
[1729767337869,0.39623,2526.2,2526.1,0.39623]
[1729767338062,0.8437,2526.4,2526.1,0.4386]
[1729767338063,0.4102,2526.4,2526.1,0.4386]
[1729767338265,0.39621,2526.3,2526.2,0.39621]
[1729767338457,0.39621,2526.3,2526.2,0.83061]
[1729767340966,0.8064,2526.4,2526.3,0.39621]
[1729767341264,0.3962,2526.4,2526.3,0.39621]
[1729767342162,0.39621,2526.3,2526.2,3.6422]
[1729767343666,0.3962,2526.4,2526.3,0.39621]
[1729767343871,0.39618,2526.5,2526.2,3.6422]
[1729767344060,0.39618,2526.5,2526.3,2.47524244]
[1729767344262,0.4347,2526.6,2526.3,2.47524244]
[1729767344462,0.39617,2526.6,2526.5,0.39618]
[1729767344963,0.39617,2526.6,2526.5,0.4302]
[1729767348172,0.39617,2526.6,2526.5,0.82638]
[1729767349370,0.39617,2526.6,2526.5,0.4302]
[1729767349679,0.39617,2526.6,2526.5,0.82638]
[1729767349875,0.39617,2526.6,2526.5,0.4302]
[1729767350276,0.39617,2526.6,2526.5,1.96806205]
[1729767351373,0.39617,2526.6,2526.5,1.57188205]
[1729767351784,0.39617,2526.6,2526.5,1.96806205]
[1729767353877,0.39614,2526.8,2526.7,0.39613]
[1729767354075,0.39614,2526.8,2526.7,1.53781205]
[1729767354470,0.80743,2526.9,2526.8,0.39613]
[1729767354675,0.4113,2526.9,2526.8,1.53781205]
[1729767354873,0.39611,2526.9,2526.8,1.53781205]
[1729767356086,0.39611,2526.9,2526.8,1.14168205]
[1729767356274,0.39611,2526.9,2526.8,1.53781205]
[1729767358381,0.39611,2526.9,2526.8,1.14168205]
[1729767358589,0.39611,2526.9,2526.8,1.53781205]
[1729767362078,0.39611,2526.9,2526.8,1.14168205]
[1729767362477,0.39621,2526.3,2526.2,3.98497299]
[1729767362780,0.39619,2526.5,2526.4,0.39619]
[1729767363083,0.39619,2526.5,2526.4,1.14168205]
[1729767366782,4.35459,2526.5,2526.4,1.14168205]
[1729767369386,4.79019,2526.5,2526.4,1.14168205]
[1729767378195,4.394,2526.5,2526.2,3.2078]
[1729767378496,0.39625,2526.0,2525.9,0.4378]
[1729767378700,0.39625,2526.0,2525.9,1.99888205]
[1729767379594,0.39627,2525.9,2525.8,3.2078]
[1729767379799,0.39629,2525.8,2525.7,1.14168205]
[1729767380190,41.19629,2525.8,2525.7,1.14168205]
[1729767380392,0.39629,2525.8,2525.7,1.14168205]
[1729767380792,0.39629,2525.8,2525.7,1.53798205]
[1729767380991,0.39625,2526.0,2525.9,0.39627]
[1729767381193,0.39625,2526.0,2525.9,1.53794205]
[1729767381395,0.39624,2526.1,2526.0,0.39625]
[1729767381594,0.39624,2526.1,2526.0,1.14168205]
[1729767382095,0.39624,2526.1,2526.0,1.53793205]
[1729767382396,0.39624,2526.1,2526.0,1.14168205]
[1729767384204,0.39624,2526.1,2526.0,1.53793205]
[1729767385994,0.39624,2526.1,2526.0,1.14168205]
[1729767386300,0.39624,2526.1,2526.0,1.53793205]
[1729767388201,0.39624,2526.1,2526.0,1.14168205]
[1729767388403,0.39624,2526.1,2526.0,1.53793205]
[1729767392196,0.39624,2526.1,2526.0,1.14168205]
[1729767393006,0.39624,2526.1,2526.0,1.53793205]
[1729767393396,0.39624,2526.1,2526.0,1.14168205]
[1729767393902,0.39624,2526.1,2526.0,1.53793205]
[1729767394503,0.39624,2526.1,2526.0,1.14168205]
[1729767397204,0.39624,2526.1,2525.8,4.0387]
[1729767397205,5.10008205,2526.1,2525.8,3.6272]
[1729767397494,5.10008205,2526.1,2525.8,4.76888205]
[1729767397495,0.39627,2525.9,2525.8,4.76888205]
[1729767397898,0.81507,2525.9,2525.8,4.76888205]
[1729767404209,0.39627,2525.9,2525.8,4.76888205]
[1729767404911,0.39627,2525.9,2525.8,5.16517205]
[1729767405216,0.39627,2525.9,2525.8,4.76888205]
[1729767405406,0.39627,2525.9,2525.8,5.16517205]
[1729767406106,0.39627,2525.9,2525.8,1.95737205]
[1729767407511,0.39627,2525.9,2525.8,1.56108205]
[1729767407708,0.39627,2525.9,2525.8,1.95737205]
[1729767408819,0.39627,2525.9,2525.8,1.56108205]
[1729767409016,0.39627,2525.9,2525.8,1.95737205]
[1729767413106,0.39627,2525.9,2525.8,1.56108205]
[1729767413715,0.39627,2525.9,2525.8,1.95737205]
[1729767415416,0.39627,2525.9,2525.8,1.56108205]
[1729767415616,0.39627,2525.9,2525.8,1.95737205]
[1729767420421,0.39625,2526.1,2526.0,0.39625]
[1729767420617,0.39623,2526.2,2526.1,0.39623]
[1729767420921,0.39623,2526.2,2526.1,1.57508205]
[1729767421617,3.6493,2526.4,2526.1,1.57508205]
[1729767421822,0.39622,2526.2,2526.1,0.4334]
[1729767422014,0.39622,2526.3,2526.2,0.39622]
[1729767422411,0.39622,2526.3,2526.1,1.86301373]
[1729767422621,0.39622,2526.3,2526.2,0.39622]
[1729767422824,0.39622,2526.3,2526.2,1.53790205]
[1729767423122,0.39622,2526.3,2526.2,2.17506578]
[1729767423528,0.39622,2526.3,2526.2,1.14168205]
[1729767424828,0.81222,2526.3,2526.2,1.14168205]
[1729767425624,0.81222,2526.3,2526.2,2.17506578]
[1729767425921,0.81222,2526.3,2526.2,1.14168205]
[1729767429036,0.416,2526.3,2526.1,1.46678373]
[1729767429325,0.416,2526.3,2526.1,1.03338373]
[1729767429326,0.39622,2526.2,2526.1,1.03338373]
[1729767429530,0.39624,2526.1,2526.0,5.38286578]
[1729767430416,0.39624,2526.1,2526.0,4.34948205]
[1729767430619,0.39624,2526.1,2526.0,1.14168205]
[1729767431320,0.39624,2526.1,2526.0,1.53793205]